fUST/lending_fUST_20260619
["ID","MTS","AMOUNT","RATE_DAILY","PERIOD"]
[425566839,1781814641000,-500.0,0.00017382,2]
[425566832,1781814641000,-299.23812019,0.00017382,2]
[425566838,1781814641000,-500.0,0.00017382,2]
[425566843,1781814641000,-500.0,0.00017382,2]
[425566842,1781814641000,-500.0,0.00017382,2]
[425566844,1781814641000,-500.0,0.00017382,2]
[425566845,1781814641000,-500.0,0.00017382,2]
[425566851,1781814641000,-507.19834769,0.00017383,2]
[425566841,1781814641000,-500.0,0.00017382,2]
[425566847,1781814641000,-500.0,0.00017383,2]
[425566846,1781814641000,-425.68776848,0.00017382,2]
[425566848,1781814641000,-504.18377158,0.00017383,2]
[425566849,1781814641000,-500.0,0.00017383,2]
[425566852,1781814641000,-506.08404775,0.00017383,2]
[425566853,1781814641000,-504.16121486,0.00017383,2]
[425566854,1781814641000,-396.95716157,0.00017383,2]
[425566855,1781814641000,-512.50342695,0.00017383,2]
[425566856,1781814641000,-505.4684664,0.00017383,2]
[425566857,1781814641000,-504.9779122,0.00017383,2]
[425566858,1781814641000,-525.32317745,0.00017383,2]
[425566797,1781814641000,-523.66,0.00017378,2]
[425566860,1781814641000,-500.0,0.00017383,2]
[425566861,1781814641000,-506.97359802,0.00017383,2]
[425566850,1781814641000,-500.0,0.00017383,2]
[425566833,1781814641000,-500.0,0.00017382,2]
[425566859,1781814641000,-588.79007579,0.00017383,2]
[425566830,1781814641000,-475.13352777,0.0001738,2]
[425566840,1781814641000,-500.0,0.00017382,2]
[425566802,1781814641000,-511.01786067,0.00017378,2]
[425566807,1781814641000,-519.95946164,0.0001738,2]
[425566806,1781814641000,-500.0,0.0001738,2]
[425566805,1781814641000,-506.35564608,0.0001738,2]
[425566804,1781814641000,-518.27354259,0.00017378,2]
[425566812,1781814641000,-500.0,0.0001738,2]
[425566813,1781814641000,-500.0,0.0001738,2]
[425566814,1781814641000,-510.69429797,0.0001738,2]
[425566809,1781814641000,-500.0,0.0001738,2]
[425566810,1781814641000,-503.69294844,0.0001738,2]
[425566811,1781814641000,-512.6504991,0.0001738,2]
[425566808,1781814641000,-516.51583311,0.0001738,2]
[425566815,1781814641000,-504.96054993,0.0001738,2]
[425566803,1781814641000,-151.0,0.00017378,2]
[425566817,1781814641000,-505.54468032,0.0001738,2]
[425566816,1781814641000,-500.0,0.0001738,2]
[425566828,1781814641000,-500.0,0.0001738,2]
[425566821,1781814641000,-500.0,0.0001738,2]
[425566826,1781814641000,-508.63520725,0.0001738,2]
[425566820,1781814641000,-500.0,0.0001738,2]
[425566822,1781814641000,-500.0,0.0001738,2]
[425566829,1781814641000,-500.0,0.0001738,2]
[425566823,1781814641000,-503.2394747,0.0001738,2]
[425566819,1781814641000,-500.0,0.0001738,2]
[425566818,1781814641000,-500.0,0.0001738,2]
[425566825,1781814641000,-500.0,0.0001738,2]
[425566824,1781814641000,-500.0,0.0001738,2]
[425566827,1781814641000,-502.13409315,0.0001738,2]
[425566900,1781814642000,-487.51791089,0.00017383,2]
[425566897,1781814642000,-506.67536073,0.00017383,2]
[425566901,1781814642000,-337.47682752,0.00017383,2]
[425566899,1781814642000,-504.70172585,0.00017383,2]
[425566895,1781814642000,-520.35245634,0.00017383,2]
[425566896,1781814642000,-524.88488864,0.00017383,2]
[425566893,1781814642000,-549.92,0.00017383,2]
[425566894,1781814642000,-504.11918486,0.00017383,2]
[425566903,1781814642000,-351.91532506,0.00017383,2]
[425566902,1781814642000,-152.36772901,0.00017383,2]
[425566898,1781814642000,-500.0,0.00017383,2]
[425566892,1781814642000,-500.0,0.00017383,2]
[425566909,1781814642000,-500.0,0.00017383,2]
[425566905,1781814642000,-500.0,0.00017383,2]
[425566906,1781814642000,-511.49432951,0.00017383,2]
[425566907,1781814642000,-480.0,0.00017383,2]
[425566908,1781814642000,-563.4891313,0.00017383,2]
[425566910,1781814642000,-500.5274325,0.00017383,2]
[425566913,1781814642000,-510.7097943,0.00017383,2]
[425566915,1781814642000,-509.65225396,0.00017383,2]
[425566912,1781814642000,-623.76883739,0.00017383,2]
[425566911,1781814642000,-500.0,0.00017383,2]
[425566914,1781814642000,-500.0,0.00017383,2]
[425566916,1781814642000,-561.21017543,0.00017383,2]
[425566891,1781814642000,-500.0,0.00017383,2]
[425566917,1781814642000,-505.23281599,0.00017383,2]
[425566904,1781814642000,-507.4880239,0.00017383,2]
[425566888,1781814642000,-500.0,0.00017383,2]
[425566872,1781814642000,-528.38,0.00017383,2]
[425566885,1781814642000,-501.89563945,0.00017383,2]
[425566918,1781814642000,-151.0,0.00017383,2]
[425566863,1781814642000,-510.66597212,0.00017383,2]
[425566862,1781814642000,-521.13988023,0.00017383,2]
[425566864,1781814642000,-519.42582,0.00017383,2]
[425566865,1781814642000,-243.05070263,0.00017383,2]
[425566873,1781814642000,-501.83725667,0.00017383,2]
[425566871,1781814642000,-504.8282386,0.00017383,2]
[425566866,1781814642000,-500.70104483,0.00017383,2]
[425566869,1781814642000,-501.7150603,0.00017383,2]
[425566877,1781814642000,-504.91556995,0.00017383,2]
[425566867,1781814642000,-503.16971395,0.00017383,2]
[425566870,1781814642000,-501.27038417,0.00017383,2]
[425566886,1781814642000,-515.06349899,0.00017383,2]
[425566874,1781814642000,-189.13043448,0.00017383,2]
[425566868,1781814642000,-526.62072261,0.00017383,2]
[425566876,1781814642000,-500.27501475,0.00017383,2]
[425566879,1781814642000,-505.67294978,0.00017383,2]
[425566878,1781814642000,-507.74802435,0.00017383,2]
[425566889,1781814642000,-500.0,0.00017383,2]
[425566880,1781814642000,-524.87659009,0.00017383,2]
[425566881,1781814642000,-505.11057813,0.00017383,2]
[425566890,1781814642000,-523.46813501,0.00017383,2]
[425566882,1781814642000,-500.0,0.00017383,2]
[425566883,1781814642000,-500.0,0.00017383,2]
[425566884,1781814642000,-534.58527695,0.00017383,2]
[425566887,1781814642000,-500.9631587,0.00017383,2]
[425566875,1781814642000,-500.0,0.00017383,2]
[425566921,1781814642000,-518.78,0.00017383,2]
[425566964,1781814642000,-1004.0,0.00017385,2]
[425566919,1781814642000,-151.0,0.00017383,2]
[425566949,1781814642000,-508.27996584,0.00017384,2]
[425566945,1781814642000,-500.0,0.00017383,2]
[425566947,1781814642000,-157.053505,0.00017383,2]
[425566948,1781814642000,-500.0,0.00017384,2]
[425566950,1781814642000,-500.0,0.00017384,2]
[425566958,1781814642000,-1004.0,0.00017385,2]
[425566970,1781814642000,-1004.0,0.00017385,2]
[425566959,1781814642000,-1004.0,0.00017385,2]
[425566969,1781814642000,-1004.0,0.00017385,2]
[425566965,1781814642000,-1004.0,0.00017385,2]
[425566962,1781814642000,-1004.0,0.00017385,2]
[425566960,1781814642000,-1004.0,0.00017385,2]
[425566954,1781814642000,-166.0,0.00017385,2]
[425566967,1781814642000,-1004.0,0.00017385,2]
[425566968,1781814642000,-1004.0,0.00017385,2]
[425566966,1781814642000,-1004.0,0.00017385,2]
[425566972,1781814642000,-1004.0,0.00017385,2]
[425566973,1781814642000,-1004.0,0.00017385,2]
[425566971,1781814642000,-1004.0,0.00017385,2]
[425566979,1781814642000,-1004.0,0.00017385,2]
[425566976,1781814642000,-1004.0,0.00017385,2]
[425566974,1781814642000,-1004.0,0.00017385,2]
[425566975,1781814642000,-1004.0,0.00017385,2]
[425566978,1781814642000,-1004.0,0.00017385,2]
[425566923,1781814642000,-518.71288072,0.00017383,2]
[425566977,1781814642000,-1004.0,0.00017385,2]
[425566961,1781814642000,-1004.0,0.00017385,2]
[425566955,1781814642000,-166.0,0.00017385,2]
[425566963,1781814642000,-1004.0,0.00017385,2]
[425566953,1781814642000,-166.0,0.00017385,2]
[425566929,1781814642000,-504.4844842,0.00017383,2]
[425566926,1781814642000,-507.35528013,0.00017383,2]
[425566951,1781814642000,-151.0,0.00017385,2]
[425566928,1781814642000,-500.0,0.00017383,2]
[425566922,1781814642000,-500.0,0.00017383,2]
[425566925,1781814642000,-504.88887206,0.00017383,2]
[425566924,1781814642000,-503.54707778,0.00017383,2]
[425566920,1781814642000,-433.8761422,0.00017383,2]
[425566930,1781814642000,-500.0,0.00017383,2]
[425566940,1781814642000,-511.43540422,0.00017383,2]
[425566932,1781814642000,-500.0,0.00017383,2]
[425566944,1781814642000,-500.0,0.00017383,2]
[425566941,1781814642000,-500.0,0.00017383,2]
[425566927,1781814642000,-506.44798515,0.00017383,2]
[425566943,1781814642000,-602.08194991,0.00017383,2]
[425566957,1781814642000,-1004.0,0.00017385,2]
[425566956,1781814642000,-166.0,0.00017385,2]
[425566946,1781814642000,-511.35728007,0.00017383,2]
[425566937,1781814642000,-500.0,0.00017383,2]
[425566952,1781814642000,-151.0,0.00017385,2]
[425566936,1781814642000,-500.0,0.00017383,2]
[425566938,1781814642000,-500.0,0.00017383,2]
[425566935,1781814642000,-151.988666,0.00017383,2]
[425566934,1781814642000,-500.0,0.00017383,2]
[425566939,1781814642000,-505.18224855,0.00017383,2]
[425566931,1781814642000,-500.0,0.00017383,2]
[425566933,1781814642000,-500.0,0.00017383,2]
[425567023,1781814643000,-500.0,0.00017658,2]
[425567024,1781814643000,-500.0,0.00017658,2]
[425567017,1781814643000,-308.02,0.00017657,2]
[425567020,1781814643000,-500.0,0.00017657,2]
[425567025,1781814643000,-300.0,0.00017732,2]
[425567019,1781814643000,-500.0,0.00017657,2]
[425567013,1781814643000,-385.51,0.00017657,2]
[425567018,1781814643000,-500.0,0.00017657,2]
[425567012,1781814643000,-500.0,0.00017657,2]
[425567016,1781814643000,-500.0,0.00017657,2]
[425567032,1781814643000,-300.0,0.00017732,2]
[425567014,1781814643000,-500.0,0.00017657,2]
[425567015,1781814643000,-500.0,0.00017657,2]
[425567030,1781814643000,-300.0,0.00017732,2]
[425567039,1781814643000,-300.0,0.00017732,2]
[425567036,1781814643000,-300.0,0.00017732,2]
[425567029,1781814643000,-300.0,0.00017732,2]
[425567027,1781814643000,-300.0,0.00017732,2]
[425567028,1781814643000,-300.0,0.00017732,2]
[425567033,1781814643000,-300.0,0.00017732,2]
[425567035,1781814643000,-300.0,0.00017732,2]
[425567031,1781814643000,-300.0,0.00017732,2]
[425567034,1781814643000,-300.0,0.00017732,2]
[425567037,1781814643000,-300.0,0.00017732,2]
[425567040,1781814643000,-600.0,0.00017732,2]
[425567049,1781814643000,-500.0,0.00017928,2]
[425567038,1781814643000,-300.0,0.00017732,2]
[425567041,1781814643000,-251.84,0.00017926,2]
[425567010,1781814643000,-500.0,0.00017657,2]
[425567026,1781814643000,-300.0,0.00017732,2]
[425567022,1781814643000,-500.0,0.00017657,2]
[425566983,1781814643000,-1004.0,0.00017385,2]
[425567011,1781814643000,-170.09,0.00017657,2]
[425567048,1781814643000,-500.0,0.00017928,2]
[425566982,1781814643000,-1004.0,0.00017385,2]
[425566984,1781814643000,-1004.0,0.00017385,2]
[425566981,1781814643000,-1004.0,0.00017385,2]
[425566980,1781814643000,-1004.0,0.00017385,2]
[425566986,1781814643000,-1004.0,0.00017385,2]
[425566985,1781814643000,-1004.0,0.00017385,2]
[425566996,1781814643000,-500.0,0.00017652,2]
[425566989,1781814643000,-1004.0,0.00017385,2]
[425566988,1781814643000,-1004.0,0.00017385,2]
[425566987,1781814643000,-1004.0,0.00017385,2]
[425566997,1781814643000,-500.0,0.00017654,2]
[425566993,1781814643000,-1004.0,0.00017385,2]
[425566991,1781814643000,-1004.0,0.00017385,2]
[425567021,1781814643000,-500.0,0.00017657,2]
[425566994,1781814643000,-605.459751,0.0001763,2]
[425566990,1781814643000,-1004.0,0.00017385,2]
[425566995,1781814643000,-500.0,0.00017652,2]
[425566998,1781814643000,-500.0,0.00017654,2]
[425567003,1781814643000,-500.0,0.00017654,2]
[425567006,1781814643000,-486.34518872,0.00017654,2]
[425567001,1781814643000,-500.0,0.00017654,2]
[425567000,1781814643000,-500.0,0.00017654,2]
[425567009,1781814643000,-425.35,0.00017657,2]
[425566999,1781814643000,-500.0,0.00017654,2]
[425567007,1781814643000,-272.19,0.00017657,2]
[425567008,1781814643000,-486.03,0.00017657,2]
[425567005,1781814643000,-500.0,0.00017654,2]
[425567002,1781814643000,-500.0,0.00017654,2]
[425567004,1781814643000,-500.0,0.00017654,2]
[425566992,1781814643000,-1004.0,0.00017385,2]
[425567050,1781814643000,-500.0,0.00017928,2]
[425567087,1781814643000,-380.69942159,0.00018953,2]
[425567042,1781814643000,-500.0,0.00017926,2]
[425567084,1781814643000,-404.0941255,0.00018953,2]
[425567085,1781814643000,-333.44543933,0.00018953,2]
[425567081,1781814643000,-157.30502049,0.00018953,2]
[425567077,1781814643000,-500.0,0.00018753,2]
[425567083,1781814643000,-280.9018223,0.00018953,2]
[425567088,1781814643000,-162.979,0.00018966,2]
[425567090,1781814643000,-2749.6823852,0.00019013,2]
[425567092,1781814643000,-500.0,0.00019027,2]
[425567104,1781814643000,-166.0,0.00019367,2]
[425567105,1781814643000,-166.0,0.00019367,2]
[425567107,1781814643000,-1004.0,0.00019367,2]
[425567111,1781814643000,-1004.0,0.00019367,2]
[425567109,1781814643000,-1004.0,0.00019367,2]
[425567094,1781814643000,-300.0,0.00019081,2]
[425567096,1781814643000,-799.80771564,0.000191,2]
[425567113,1781814643000,-1004.0,0.00019367,2]
[425567098,1781814643000,-605.459751,0.00019114,2]
[425567100,1781814643000,-799.80771564,0.000193,2]
[425567102,1781814643000,-500.0,0.00019301,2]
[425567114,1781814643000,-1004.0,0.00019367,2]
[425567116,1781814643000,-1004.0,0.00019367,2]
[425567118,1781814643000,-1004.0,0.00019367,2]
[425567122,1781814643000,-1004.0,0.00019367,2]
[425567120,1781814643000,-1004.0,0.00019367,2]
[425567125,1781814643000,-1004.0,0.00019367,2]
[425567129,1781814643000,-1004.0,0.00019367,2]
[425567123,1781814643000,-1004.0,0.00019367,2]
[425567131,1781814643000,-1004.0,0.00019367,2]
[425567132,1781814643000,-1004.0,0.00019367,2]
[425567082,1781814643000,-179.77716628,0.00018953,2]
[425567079,1781814643000,-799.80771564,0.000189,2]
[425567127,1781814643000,-1004.0,0.00019367,2]
[425567078,1781814643000,-500.0,0.00018754,2]
[425567080,1781814643000,-160.0,0.000189,5]
[425567047,1781814643000,-215.41,0.00017928,2]
[425567044,1781814643000,-271.21,0.00017928,2]
[425567045,1781814643000,-500.0,0.00017928,2]
[425567046,1781814643000,-500.0,0.00017928,2]
[425567056,1781814643000,-500.0,0.00017931,2]
[425567051,1781814643000,-500.0,0.00017928,2]
[425567055,1781814643000,-500.0,0.00017931,2]
[425567059,1781814643000,-500.0,0.00017931,2]
[425567058,1781814643000,-500.0,0.00017931,2]
[425567057,1781814643000,-500.0,0.00017931,2]
[425567054,1781814643000,-500.0,0.00017931,2]
[425567062,1781814643000,-500.0,0.00017932,2]
[425567052,1781814643000,-500.0,0.00017931,2]
[425567053,1781814643000,-201.09,0.00017931,2]
[425567043,1781814643000,-500.0,0.00017928,2]
[425567061,1781814643000,-500.0,0.00017931,2]
[425567063,1781814643000,-500.0,0.00017932,2]
[425567076,1781814643000,-2255.3696701,0.00018731,2]
[425567073,1781814643000,-210.99829752,0.000186,2]
[425567074,1781814643000,-799.80771564,0.000187,2]
[425567070,1781814643000,-605.459751,0.00018372,2]
[425567072,1781814643000,-500.0,0.0001848,2]
[425567071,1781814643000,-500.0,0.00018479,2]
[425567069,1781814643000,-500.0,0.00018206,2]
[425567067,1781814643000,-151.0,0.00018148,2]
[425567068,1781814643000,-500.0,0.00018205,2]
[425567075,1781814643000,-3451.58409733,0.00018709,2]
[425567064,1781814643000,-3451.58409733,0.00017995,2]
[425567065,1781814643000,-2749.6823852,0.00018146,2]
[425567060,1781814643000,-202.5,0.00017931,2]
[425567066,1781814643000,-151.0,0.00018148,2]
[425567211,1781814644000,-166.74799993,0.0002024,2]
[425567215,1781814644000,-500.0,0.00020397,2]
[425567206,1781814644000,-445.0,0.00020238,2]
[425567210,1781814644000,-1840.0,0.00020238,2]
[425567208,1781814644000,-186.0,0.00020238,2]
[425567197,1781814644000,-2038.349878,0.00020091,2]
[425567213,1781814644000,-162.380719,0.0002024,2]
[425567202,1781814644000,-500.0,0.00020123,2]
[425567195,1781814644000,-1099.174939,0.00020091,2]
[425567200,1781814644000,-636.4378096,0.00020098,2]
[425567199,1781814644000,-1111.0852523,0.00020098,2]
[425567204,1781814644000,-3451.58409733,0.00020138,2]
[425567217,1781814644000,-177.55483712,0.00020399,2]
[425567224,1781814644000,-1071.66775771,0.000204,2]
[425567221,1781814644000,-1001.84465023,0.000204,2]
[425567223,1781814644000,-1015.54672389,0.000204,2]
[425567226,1781814644000,-162.317236,0.00020548,2]
[425567239,1781814644000,-502.884896,0.00020586,2]
[425567237,1781814644000,-502.68174304,0.00020586,2]
[425567193,1781814644000,-160.0,0.00020091,2]
[425567231,1781814644000,-234.898525,0.0002058,2]
[425567228,1781814644000,-1361.00073224,0.0002057,6]
[425567235,1781814644000,-298.94,0.00020586,2]
[425567233,1781814644000,-500.0,0.00020586,2]
[425567241,1781814644000,-500.0,0.00020586,2]
[425567245,1781814644000,-500.0,0.00020586,2]
[425567243,1781814644000,-151.0,0.00020586,2]
[425567247,1781814644000,-500.0,0.00020586,2]
[425567219,1781814644000,-917.09367196,0.000204,2]
[425567185,1781814644000,-2285.508931,0.00020039,2]
[425567171,1781814644000,-183.375607,0.00019963,2]
[425567186,1781814644000,-3822.79192,0.00020059,2]
[425567249,1781814644000,-503.50262055,0.00020586,2]
[425567134,1781814644000,-1004.0,0.00019367,2]
[425567138,1781814644000,-1004.0,0.00019367,2]
[425567136,1781814644000,-1004.0,0.00019367,2]
[425567142,1781814644000,-1004.0,0.00019367,2]
[425567140,1781814644000,-1004.0,0.00019367,2]
[425567144,1781814644000,-1004.0,0.00019367,2]
[425567147,1781814644000,-151.0,0.00019367,2]
[425567146,1781814644000,-1004.0,0.00019367,2]
[425567153,1781814644000,-799.80771564,0.000195,2]
[425567155,1781814644000,-720.0,0.00019505,2]
[425567156,1781814644000,-270.528728,0.00019569,2]
[425567151,1781814644000,-3451.58409733,0.00019424,2]
[425567149,1781814644000,-151.0,0.00019367,2]
[425567158,1781814644000,-500.0,0.00019575,2]
[425567162,1781814644000,-500.0,0.00019849,2]
[425567160,1781814644000,-160.0,0.000198,7]
[425567166,1781814644000,-2749.6823852,0.00019881,2]
[425567167,1781814644000,-352.347788,0.00019963,2]
[425567176,1781814644000,-160.0,0.00020001,2]
[425567172,1781814644000,-206.751215,0.00019963,2]
[425567180,1781814644000,-7148.291812,0.00020001,2]
[425567174,1781814644000,-161.0,0.0002,7]
[425567169,1781814644000,-160.0,0.00019963,2]
[425567178,1781814644000,-3654.145906,0.00020001,2]
[425567183,1781814644000,-1222.754465,0.00020039,2]
[425567181,1781814644000,-160.0,0.00020039,2]
[425567192,1781814644000,-178.522627,0.00020059,2]
[425567190,1781814644000,-151.0,0.00020059,2]
[425567188,1781814644000,-7485.58384,0.00020059,2]
[425567164,1781814644000,-605.459751,0.00019856,2]
[425567251,1781814644000,-500.0,0.00020586,2]
[425567262,1781814644000,-500.0,0.00020586,2]
[425567333,1781814644000,-501.57103658,0.00020586,2]
[425567334,1781814644000,-508.21262576,0.00020586,2]
[425567330,1781814644000,-503.43310434,0.00020586,2]
[425567319,1781814644000,-518.66847566,0.00020586,2]
[425567323,1781814644000,-511.73564308,0.00020586,2]
[425567336,1781814644000,-500.0,0.00020586,2]
[425567325,1781814644000,-511.2620221,0.00020586,2]
[425567321,1781814644000,-510.1731411,0.00020586,2]
[425567338,1781814644000,-503.35524687,0.00020586,2]
[425567340,1781814644000,-507.7173346,0.00020586,2]
[425567342,1781814644000,-441.66993005,0.00020586,2]
[425567355,1781814644000,-503.45043887,0.00020586,2]
[425567344,1781814644000,-500.0,0.00020586,2]
[425567350,1781814644000,-500.0,0.00020586,2]
[425567360,1781814644000,-500.0,0.00020586,2]
[425567356,1781814644000,-252.65199823,0.00020586,2]
[425567348,1781814644000,-501.94274662,0.00020586,2]
[425567352,1781814644000,-504.24345602,0.00020586,2]
[425567358,1781814644000,-523.93849044,0.00020586,2]
[425567362,1781814644000,-503.92206718,0.00020586,2]
[425567364,1781814644000,-503.0731832,0.00020586,2]
[425567366,1781814644000,-500.55592695,0.00020586,2]
[425567369,1781814644000,-505.98446097,0.00020586,2]
[425567371,1781814644000,-517.44370241,0.00020586,2]
[425567373,1781814644000,-502.95697517,0.00020586,2]
[425567375,1781814644000,-506.01725849,0.00020586,2]
[425567377,1781814644000,-500.0,0.00020586,2]
[425567367,1781814644000,-501.22472386,0.00020586,2]
[425567264,1781814644000,-501.77523733,0.00020586,2]
[425567315,1781814644000,-500.0,0.00020586,2]
[425567317,1781814644000,-500.0,0.00020586,2]
[425567347,1781814644000,-500.0,0.00020586,2]
[425567328,1781814644000,-503.85010821,0.00020586,2]
[425567256,1781814644000,-500.0,0.00020586,2]
[425567327,1781814644000,-511.739276,0.00020586,2]
[425567252,1781814644000,-500.0,0.00020586,2]
[425567254,1781814644000,-502.53974438,0.00020586,2]
[425567258,1781814644000,-500.0,0.00020586,2]
[425567268,1781814644000,-500.0,0.00020586,2]
[425567266,1781814644000,-500.0,0.00020586,2]
[425567260,1781814644000,-560.85454787,0.00020586,2]
[425567277,1781814644000,-500.0,0.00020586,2]
[425567273,1781814644000,-1000.0,0.00020586,2]
[425567289,1781814644000,-525.47713549,0.00020586,2]
[425567279,1781814644000,-500.0,0.00020586,2]
[425567286,1781814644000,-500.0,0.00020586,2]
[425567288,1781814644000,-500.0,0.00020586,2]
[425567282,1781814644000,-500.0,0.00020586,2]
[425567275,1781814644000,-500.0,0.00020586,2]
[425567314,1781814644000,-500.0,0.00020586,2]
[425567310,1781814644000,-500.0,0.00020586,2]
[425567284,1781814644000,-500.0,0.00020586,2]
[425567304,1781814644000,-500.0,0.00020586,2]
[425567312,1781814644000,-1000.0,0.00020586,2]
[425567306,1781814644000,-500.0,0.00020586,2]
[425567301,1781814644000,-500.0,0.00020586,2]
[425567308,1781814644000,-514.76051848,0.00020586,2]
[425567297,1781814644000,-500.0,0.00020586,2]
[425567299,1781814644000,-503.8964734,0.00020586,2]
[425567295,1781814644000,-506.29860738,0.00020586,2]
[425567291,1781814644000,-500.0,0.00020586,2]
[425567293,1781814644000,-500.0,0.00020586,2]
[425567303,1781814644000,-500.0,0.00020586,2]
[425567435,1781814645000,-559.51,0.00020586,2]
[425567440,1781814645000,-500.0,0.00020586,2]
[425567434,1781814645000,-448.72606318,0.00020586,2]
[425567436,1781814645000,-502.39393082,0.00020586,2]
[425567437,1781814645000,-500.0,0.00020586,2]
[425567438,1781814645000,-500.0,0.00020586,2]
[425567460,1781814645000,-500.0,0.00020586,2]
[425567441,1781814645000,-413.66388426,0.00020586,2]
[425567430,1781814645000,-503.67575133,0.00020586,2]
[425567432,1781814645000,-500.0,0.00020586,2]
[425567442,1781814645000,-500.0,0.00020586,2]
[425567439,1781814645000,-500.0,0.00020586,2]
[425567433,1781814645000,-500.0,0.00020586,2]
[425567454,1781814645000,-501.50544102,0.00020586,2]
[425567470,1781814645000,-500.0,0.00020586,2]
[425567444,1781814645000,-502.30344749,0.00020586,2]
[425567448,1781814645000,-501.49352412,0.00020586,2]
[425567446,1781814645000,-503.07011726,0.00020586,2]
[425567456,1781814645000,-500.0,0.00020586,2]
[425567450,1781814645000,-502.01767212,0.00020586,2]
[425567453,1781814645000,-500.0,0.00020586,2]
[425567443,1781814645000,-500.0,0.00020586,2]
[425567455,1781814645000,-521.6979837,0.00020586,2]
[425567452,1781814645000,-500.0,0.00020586,2]
[425567447,1781814645000,-500.0,0.00020586,2]
[425567451,1781814645000,-500.0,0.00020586,2]
[425567445,1781814645000,-502.26275153,0.00020586,2]
[425567458,1781814645000,-500.0,0.00020586,2]
[425567431,1781814645000,-500.0,0.00020586,2]
[425567449,1781814645000,-501.84000062,0.00020586,2]
[425567424,1781814645000,-500.0,0.00020586,2]
[425567383,1781814645000,-467.13075525,0.00020586,2]
[425567426,1781814645000,-503.73646138,0.00020586,2]
[425567381,1781814645000,-500.0,0.00020586,2]
[425567388,1781814645000,-544.95407695,0.00020586,2]
[425567390,1781814645000,-500.0,0.00020586,2]
[425567387,1781814645000,-500.0,0.00020586,2]
[425567379,1781814645000,-500.0,0.00020586,2]
[425567385,1781814645000,-503.44238565,0.00020586,2]
[425567392,1781814645000,-500.0,0.00020586,2]
[425567398,1781814645000,-508.41,0.00020586,2]
[425567400,1781814645000,-500.0,0.00020586,2]
[425567402,1781814645000,-500.0,0.00020586,2]
[425567396,1781814645000,-500.0,0.00020586,2]
[425567394,1781814645000,-504.02234427,0.00020586,2]
[425567414,1781814645000,-500.0,0.00020586,2]
[425567404,1781814645000,-500.0,0.00020586,2]
[425567417,1781814645000,-500.0,0.00020586,2]
[425567412,1781814645000,-505.0693532,0.00020586,2]
[425567411,1781814645000,-537.59040397,0.00020586,2]
[425567408,1781814645000,-500.0,0.00020586,2]
[425567406,1781814645000,-500.0,0.00020586,2]
[425567416,1781814645000,-504.95837758,0.00020586,2]
[425567423,1781814645000,-342.39545924,0.00020586,2]
[425567418,1781814645000,-500.0,0.00020586,2]
[425567421,1781814645000,-500.0,0.00020586,2]
[425567419,1781814645000,-500.0,0.00020586,2]
[425567422,1781814645000,-500.0,0.00020586,2]
[425567425,1781814645000,-501.73302891,0.00020586,2]
[425567429,1781814645000,-500.0,0.00020586,2]
[425567420,1781814645000,-500.0,0.00020586,2]
[425567427,1781814645000,-500.0,0.00020586,2]
[425567428,1781814645000,-500.0,0.00020586,2]
[425567409,1781814645000,-500.0,0.00020586,2]
[425567468,1781814645000,-500.0,0.00020586,2]
[425567505,1781814645000,-500.0,0.00020598,2]
[425567462,1781814645000,-500.0,0.00020586,2]